Cogmind - Beta 16.1 @@@ ROGUE MODE // 2026.03.14 @ 21:09:30 Player: StaticNoob Result: Destroyed by BY-GRK(R) with Subdweller Shrapnel Launcher Performance ------------- Evolutions (0) 0 Regions Visited (2) 400 Robots Destroyed (29) 145 Value Destroyed (580) 580 Prototype IDs (0) 0 Alien Tech Used (0) 0 Bonus (0) 0 TOTAL SCORE: 1125 Bonus ------- None Cogmind --------- Core Integrity 0/250 Matter 300/300 Energy 170/200 System Corruption 0% Temperature Cool (0) Movement Treading (240) Ox1 Location -10/Subcaves Parts ------- > --- POWER (1) -------- Subdweller Power Source > --- PROPULSION (2) --- Light Treads > --- UTILITY (2) ------ Improved Heat Sink Large Storage Unit > --- WEAPON (2) ------- Subdweller Laser Beam Cannon > --- INVENTORY (15) --- Subdweller Power Source Medium Matter Pod (100) Seismic Detector Seismic Detector Beam Cannon Assault Rifle Assault Rifle Improved Light Cannon Improved Light Cannon Improved Light Cannon Grenade Launcher Subdweller Shrapnel Launcher Peak State ------------ > --- POWER ------------ Subdweller Power Source > --- PROPULSION ------- Light Treads Light Treads > --- UTILITY ---------- Improved Heat Sink Large Storage Unit > --- WEAPON ----------- Beam Cannon Assault Rifle > --- INVENTORY -------- Subdweller Power Source Light Treads Medium Matter Pod Structural Scanner Seismic Detector Seismic Detector Beam Cannon Subdweller Beam Cannon Assault Rifle Subdweller Machine Gun Improved Light Cannon Improved Light Cannon Improved Light Cannon Grenade Launcher Subdweller Shrapnel Launcher [Rating: 12] Favorites ----------- Power Light Ion Engine Engine Light Ion Engine Propulsion Light Treads Treads Light Treads Utility Large Storage Unit Device Structural Scanner Storage Large Storage Unit Weapon Assault Rifle Energy Gun Subdweller Laser Energy Cannon Beam Cannon Ballistic Gun Assault Rifle Launcher Grenade Launcher Build | -11 -10 -10 ------- Run | Yrd Mat Sub Slots Evolved . | . . . Power . | . . . Propulsion . | . . . Utility . | . . . Weapon . | . . . Parts Attached 19 | 7 4 8 Power 2 | 1 . 1 Engine 2 | 1 . 1 Core . | . . . Reactor . | . . . Propulsion 4 | 2 1 1 Treads 4 | 2 1 1 Leg . | . . . Wheel . | . . . Hover . | . . . Flight . | . . . Utility 5 | 2 1 2 Device 3 | 1 . 2 Storage 2 | 1 1 . Processor . | . . . Hackware . | . . . Protection . | . . . Artifact . | . . . Weapon 8 | 2 2 4 Energy Gun 1 | . . 1 Energy Cannon 3 | . 1 2 Ballistic Gun 3 | 2 . 1 Ballistic Cannon . | . . . Launcher 1 | . 1 . Special Weapon . | . . . Impact Weapon . | . . . Slashing Weapon . | . . . Piercing Weapon . | . . . Special Melee Weapon . | . . . Unidentified Prototypes . | . . . Parts Lost 5 | . 1 4 Power 1 | . . 1 Propulsion 3 | . 1 2 Utility 1 | . . 1 Weapon . | . . . Highest Loss Streak 1 | . 1 1 To Critical Strikes . | . . . Average Backups 11 | 1 8 14 Power . | . 1 1 Propulsion . | . 1 . Utility 2 | . 1 3 Weapon 7 | . 5 8 Tool/Special . | . . . Unused Backups 11 | . . 11 Power 2 | . . 2 Propulsion . | . . . Utility 2 | . . 2 Weapon 7 | . . 7 Tool/Special . | . . . Average Slot Usage (%) 93 | . 94 93 Engine 13 | . 14 13 Treads 22 | . 22 21 Device 14 | . 14 14 Storage 14 | . 14 14 Energy Gun 3 | . . 5 Energy Cannon 10 | . 2 15 Ballistic Gun 13 | . 24 6 Peak Build Rating 12 | 7 9 12 Average Rating 8 | 5 7 10 On Entrance 5 | . 7 9 Avg Prop Armor Cover (%) . | . . . Naked Turns . | . . . Heaviest Build 37 | 13 29 37 Greatest Support 40 | 40 40 40 Greatest Overweight (x) 1 | . 1 1 Average Overweight (x) . | . . . Largest Inventory Capacity 15 | 8 15 15 Average Capacity 14 | 7 13 15 Most Carried 15 | 2 15 15 Average Carried 11 | 1 9 14 Final Capacity 15 | 8 15 15 Final Carried 15 | 2 15 12 Class Distribution -------------------- 100% | Mutant Dominant Class ---------------- Mutant | -10/Materials Mutant | -10/Subcaves Resources | -11 -10 -10 ----------- Run | Yrd Mat Sub Matter Collected 857 | 229 301 327 Remotely . | . . . Salvage Created 702 | 30 325 347 Parts 48 | 8 14 26 Haulers Intercepted 1 | . 1 . Recyclers Shooed . | . . . Parts Field Recycled . | . . . Retrieved Matter . | . . . Parts Self-Destructed 15 | . . 15 Prevented . | . . . Parts Restored . | . . . Kills | -11 -10 -10 ------- Run | Yrd Mat Sub Combat Hostiles Destroyed 22 | . 11 11 Guns 8 | . 3 5 Cannons 6 | . . 6 AOE 8 | . 8 . Classes Destroyed 8 | 1 6 1 Worker 1 | . 1 . Tunneler 2 | 2 . . Hauler 1 | . 1 . Recycler 1 | . 1 . Watcher 2 | . 2 . Swarmer 12 | . 9 3 Grunt 3 | . 2 1 Subdweller 7 | . . 7 Best Kill Streak 7 | 2 7 3 Combat Bots Only 7 | . 7 3 Max Kills in Single Turn 2 | 1 2 1 Gunslinging . | . . . Exploded 2 | . 2 . Melee . | . . . Uniques/NPCs Destroyed . | . . . Combat | -11 -10 -10 -------- Run | Yrd Mat Sub Hostile Shots Fired 107 | . 36 71 Missed 37 | . 14 23 Hits 70 | . 22 48 Projectile 70 | . 22 48 AOE 2 | . . 2 Critical Strikes 2 | . 1 1 Damage Taken 1238 | . 350 888 Core 250 | . 44 206 Absorbed by Shields . | . . . Core Remaining (%) 100 | 100 . . Volleys Fired 119 | 5 52 62 Largest 2 | 2 2 2 Hottest 140 | 40 60 140 Shots Fired 196 | 10 80 106 Gun 110 | 10 56 44 Cannon 81 | . 19 62 Launcher 5 | . 5 . Special . | . . . Kinetic 90 | 10 56 24 Thermal 101 | . 19 82 Explosive 5 | . 5 . Electromagnetic . | . . . Robot Hit Streak 15 | 4 7 15 Robot Miss Streak 7 | 1 7 3 Penetration Max . | . . . Secondary Targets . | . . . Shots Hit Robots 115 | 7 43 65 Core Hits 43 | 2 23 18 Critical Kills 1 | . . 1 Critical Parts Destroyed 1 | . 1 . Critical Strikes 2 | . 1 1 Destroy 2 | . 1 1 Melee Attacks . | . . . Impact . | . . . Slashing . | . . . Piercing . | . . . Sneak Attacks . | . . . Combat Hostiles . | . . . Follow-up Attacks . | . . . Damage Inflicted 2421 | 101 1135 1185 Guns 914 | 101 375 438 Cannons 960 | . 213 747 Explosions 539 | . 539 . Melee . | . . . Ramming 8 | . 8 . Kinetic 747 | 101 375 271 Thermal 1127 | . 213 914 Explosive 539 | . 539 . Electromagnetic . | . . . Impact . | . . . Slashing . | . . . Piercing . | . . . Highest Corruption . | . . . Average Corruption . | . . . Corruption Purged . | . . . Corruption Blocked . | . . . Overload Shots . | . . . Overflow Damage 52 | . 52 . Projectiles 2 | . 2 . Explosions 50 | . 50 . Melee . | . . . Knockbacks . | . . . Impact . | . . . Kinetic . | . . . Secondary . | . . . Self-Inflicted Damage 101 | . 101 . Shots 1 | . 1 . Rammed 2 | . 2 . Targets Rammed 2 | . 2 . Kicked . | . . . Crushed . | . . . Highest Temperature 120 | . 120 21 Average Temperature 24 | . 32 8 Received Heat Transfer 171 | . 81 90 Siege Activations . | . . . Martial Activations . | . . . Shielding Activations . | . . . Robots Disrupted . | . . . Combat Hostiles . | . . . Robots Corrupted . | . . . Combat Hostiles . | . . . Parts Fried . | . . . Impact Corruptions . | . . . Robots Melted . | . . . Combat Hostiles . | . . . Parts Melted 3 | . 1 2 Heat Transferred 2124 | . 444 1680 Parts Sabotaged . | . . . Parts Stolen . | . . . Parts Stripped . | . . . Power Chain Reactions . | . . . Alert | -11 -10 -10 ------- Run | Yrd Mat Sub Maximum Alert Level . | . . . Low Security (%) 100 | 100 100 . Level 1 . | . . . Level 2 . | . . . Level 3 . | . . . Level 4 . | . . . Level 5 . | . . . High Security . | . . . Max Security . | . . . Peak Influence 185 | 10 185 . Initial . | . . . Average 81 | 1 88 . Influence Increases 596 | 10 416 170 Destroy 0b10 Robot/C 300 | . 220 80 Destroy 0b10 Robot/NC 35 | 10 25 . Destroy Leader 46 | . 46 . Successful Hack 29 | . 29 . Disable Machine 15 | . 15 . Destroy Structure 51 | . 51 . Partial Spotted 15 | . 15 . Lose Combat Pursuer 105 | . 15 90 Influence Decreases 596 | 10 394 192 Entered New Map 11 | . . 11 Time Decay 555 | 10 384 161 Lost Part 30 | . 10 20 Squads Dispatched 1 | . 1 . Investigation . | . . . Extermination . | . . . Reinforcement 1 | . 1 . Assault . | . . . Garrison . | . . . Intercept . | . . . Searches Triggered . | . . . Construction Impeded . | . . . Haulers Reinforced . | . . . Active Scanning Responses . | . . . Cargo Convoy Interrupts . | . . . Stealth | -11 -10 -10 --------- Run | Yrd Mat Sub Distress Signals 1 | . 1 . Communications Jammed . | . . . Distress Signals . | . . . Times Spotted 36 | . 21 15 Peak Tracking Total 4 | . 4 4 Tactical Retreats 3 | . 1 2 Traps | -11 -10 -10 ------- Run | Yrd Mat Sub Traps Triggered . | . . . Indirectly . | . . . Trap Hack Attempts . | . . . Triggered . | . . . Disarmed . | . . . Reprogrammed . | . . . Reused . | . . . Traps Extracted . | . . . Installed . | . . . Triggered . | . . . Machines | -11 -10 -10 ---------- Run | Yrd Mat Sub Machines Disabled 1 | . 1 . Max in Single Turn 1 | . 1 . Machines Repaired . | . . . Machines Dismantled . | . . . Machines Sabotaged . | . . . Overloaded Fab Kills . | . . . Hacking | -11 -10 -10 --------- Run | Yrd Mat Sub Machines Accessed 6 | . 6 . Terminals 5 | . 5 . Fabricators . | . . . Repair Stations . | . . . Recycling Units 1 | . 1 . Scanalyzers . | . . . Garrison Access . | . . . Total Hacks 19 | . 19 . Successful 10 | . 10 . Failed 9 | . 9 . Catastrophic 2 | . 2 . Database Lockouts . | . . . Manual 16 | . 16 . Terminals 17 | . 17 . Fabricators . | . . . Repair Stations . | . . . Recycling Units 2 | . 2 . Scanalyzers . | . . . Garrison Access . | . . . Terminal Hacks 4 | . 4 . Robot Analysis 3 | . 3 . Locate Traps 1 | . 1 . Fabricator Hacks . | . . . Repair Station Hacks . | . . . Recycling Unit Hacks 1 | . 1 . Retrieve Components 1 | . 1 . Scanalyzer . | . . . Garrison Access Hacks . | . . . Unauthorized Hacks 5 | . 5 . Terminals 5 | . 5 . Skim 5 | . 5 . Fabricators . | . . . Repair Stations . | . . . Recycling Units . | . . . Scanalyzers . | . . . Garrison Access . | . . . Data Cores Recovered . | . . . Used . | . . . Hacking Detections 6 | . 6 . Full Trace Events . | . . . Feedback Events . | . . . Feedback Blocked . | . . . Robot Schematics Acquired . | . . . Robots Built . | . . . Authchips . | . . . Time . | . . . Total Robot Build Rating . | . . . Part Schematics Acquired . | . . . Parts Built . | . . . Authchips . | . . . Time . | . . . Total Part Build Rating . | . . . Part Studies Acquired . | . . . Parts Repaired . | . . . Time . | . . . Parts Recycled . | . . . Recycled Matter . | . . . Retrieved Matter . | . . . Retrieved Components . | . . . Parts Scanalyzed . | . . . Part Schematics Acquired . | . . . Parts Damaged . | . . . Bothacking | -11 -10 -10 ------------ Run | Yrd Mat Sub Used RIF Installer . | . . . Robots Hacked . | . . . Non-combat . | . . . Combat . | . . . Robot Hacks Applied . | . . . Relay Couplers Released . | . . . Fabnet Peak Effective % . | . . . Robots Rewired . | . . . Allies Hacked . | . . . Hacks Repelled . | . . . Allies | -11 -10 -10 -------- Run | Yrd Mat Sub Total Allies . | . . . Largest Group . | . . . Highest-Rated Group . | . . . Highest-Rated Ally . | . . . Total Orders . | . . . Ally Attacks . | . . . Total Damage . | . . . Kills . | . . . Allies Corrupted . | . . . Allies Melted . | . . . Intel | -11 -10 -10 ------- Run | Yrd Mat Sub Active Infowar (turns) 2314 | 13 978 1323 Structural 1216 | . . 1216 Seismic 1098 | 13 978 107 Robot Analysis Total 3 | . 3 . Derelict Logs Recovered 2 | . . 2 Drone Launches . | . . . Drone Recoveries . | . . . Exploration | -11 -10 -10 ------------- Run | Yrd Mat Sub Turns Passed 2626 | 95 978 1553 Spaces Moved 1173 | 45 437 691 Core 3 | 3 . . Treads 1170 | 42 437 691 Legs . | . . . Wheels . | . . . Hover . | . . . Flight . | . . . Fastest Speed 50 | 50 160 160 Average Speed 186 | 152 185 188 Slowest Speed 240 | 160 240 240 Overloaded Moves . | . . . Propulsion Burnouts . | . . . Robots Hopped . | . . . Potential Cave-ins . | . . . Cave-ins Triggered . | . . . Exploration Rate (%) 37 | 5 62 44 Regions Visited 2 Branch Regions 1 Pre-discovered Areas 3 | . 3 . Known Exits Taken 1 | . 1 . Unknown Exits Taken 1 | 1 . . Scrap Searched 4 | . . 4 Spaces Dug 7 | . 7 . Terrain Destroyed 51 | . 51 . Melee . | . . . Projectile . | . . . AOE 51 | . 51 . Terrain Rammed . | . . . Walls Destroyed . | . . . Machines Disabled . | . . . Actions | -11 -10 -10 --------- Run | Yrd Mat Sub Total 1410 | 58 518 834 Wait 61 | . 2 59 Move 1172 | 44 437 691 Hop . | . . . Pick Up 21 | 2 15 4 Fast Attach 9 | 7 . 2 Attach 3 | . 1 2 Detach . | . . . Swap 15 | . 8 7 Drop 9 | . 2 7 Fire 119 | 5 52 62 Melee . | . . . Ram . | . . . Kick . | . . . Crush 1 | . 1 . Escape Stasis . | . . . Rewire . | . . . Trap . | . . . Miscellaneous . | . . . Route ------- -11/Scrapyard -10/Materials (discovered 5 exits: *Mat x3 / [*Min] / *Sub) -10/Subcaves (discovered 3 exits: *Mat x2 / [Rec]) History --------- Turn | Location | Event 11 | -11/Scrapyard | Discovered new exit (range 14) 96 | -11/Scrapyard | Entered Materials 147 | -10/Materials | Discovered new exit (range 15) 191 | -10/Materials | Destroyed 7 combat bots 318 | -10/Materials | Build established: Mutant 382 | -10/Materials | Discovered new exit (range 3) 761 | -10/Materials | Learned location of 1 exit from Recycling 821 | -10/Materials | Identified exit to Subcaves 912 | -10/Materials | Learned location of Recycling (-9) 942 | -10/Materials | Learned 2 Storage zone layouts 963 | -10/Materials | Identified exit to Materials 992 | -10/Materials | Learned location of 1 exit from Recycling 1074 | -10/Materials | Entered Subcaves 1075 | -10/Subcaves | Identified exit to Materials 1290 | -10/Subcaves | Learned Materials terminal intel 1422 | -10/Subcaves | Learned Materials stockpile data 1697 | -10/Subcaves | A swath of the cavern ceiling suddenly collapsed 1802 | -10/Subcaves | Discovered exit to Materials (range 12) 1826 | -10/Subcaves | Discovered new exit (range 9) 1877 | -10/Subcaves | Core integrity fell below 50% 2129 | -10/Subcaves | Shifting Twisted Machinery released Flamer 2149 | -10/Subcaves | Shifting Twisted Machinery released Sub. Shrapnel Launcher 2413 | -10/Subcaves | Disturbed a concealed Subdweller 2627 | -10/Subcaves | Destroyed by BY-GRK(R) with Subdweller Shrapnel Launcher Last Messages --------------- 01987_ Acquired Assault Rifle. 01992_ Acquired 10 matter. Flamer falls loose from the Twisted Machinery. Sub. Shrapnel Launcher falls loose from the Twisted Machinery. 02175_ Dropped Broken Sub. Beam Cannon. 02175_ Dropped Broken Sub. Machine Gun. 02413_ TI-MUK(R) angrily emerges from the Twisted Machinery. 02421_ Structural Scanner destroyed. 02425_ TI-MUK(R) suffers critical hit (Destroy). 02425_ TI-MUK(R) destroyed. 02438_ Acquired 10 matter. 02448_ Searching scrap... 02448_ Found Mak. System Shield. 02448_ Found Sub. Monowheel. 02448_ Found 65 Matter. 02450_ Searching scrap... 02450_ Found Sub. Optics. 02580_ 5A-3Y8(R) destroyed. Map ----- +----------------------------------------------------+ | ?????????????????????????????????????????????????? | | ?????????????????????????????????????????????????? | | ?????????????????????????????????????????????????? | | ?????????????????????????????????????????????????? | | ?????????????????????????????????????????????????? | | ?????????????????????????????????????????????????? | | ?????????????????????????????????????????????????? | | ?????????????????????????????????????????????????? | | ???????????????????????????# ??????????????????? | | ??????????????????????????# #?????????????????? | | ?????????????????????????? ??????????????????? | | ?????????????????????????? ??? ??????????????? | | ?????????????????????????? ??? ???????????? | | ?????????????????????????? ??? ?????????? | | ?????????????????????????# ### ?? ?????? | | ???????????????????????## # ?? ?????? | | ??????????????????????## ? #?????? | | ????????????????????### ? ? #???????## | | ????????????????????? #? ? #???????## | | ????????????????#??### ## ???????### | | ????????????????# ## ; R ;; ???????### | | ????????????????#&# # ???????## | | ????????????????#"& ## &%! "???????????? | | ????????????????######;;% ; # #????????????##### | | ?????????????????????# ; !;;###??????????????##### | | ?????????????????????# ; @;###########??????### # | | ?????????????????????##; ;#""################# | | ??????????????????????## ""## ########## | | ??????????????????????#" "" ### | | ??????????????????#####" " ##"" | | ??????????????????# """### "## ## ## | | ??????????????????## """#### "##### #### " | | ???????????????????### ####" ?"#### ######" | | ????????????????????### ##"" ????## ######## | | ????????????????????### ###"" ???### #### #" | | ????????????????????## #####"???### #### ] | | ?????????????????????# #####???## ###### | | ?????????????????????## ####????## ##### # | | ??????????????????????# ##????## #### """ | | ?????????????????????# ### ##?####### #### " | | ?????????????????????###### ############### # ### | | ???????????????????####### ##### ### ## ###### | | ???????????????????#"!## #### | | ???????????????????#!%### ## | | ???????????????????#=##"#" | | ??????????????????##*#&!& ####### | | ?????????????????? #"&%## ############ ### # | | ??????????????????######## #######???### ###### | | ??????????????????####?##########????????######### | | ????????????????????????########?????????#####???? | +----------------------------------------------------+ Best States ------------- Heat Dissipation 39 Energy Generation 10 Energy Capacity 200 Matter Stores 300 Matter Capacity 300 Sight Range 16 Terrain Scan Density 10 Evasion (%) 40 Recoil Reduction 2 Item Schematics ----------------- None Robot Schematics ------------------ None Fabricated ------------ Nothing Repaired ---------- Nothing Studied --------- None Alien Tech Used ----------------- None Achievements -------------- None Challenges ------------ None Game ------ Seed AdvancedZhirovPropulsion Manual? 0 Play Time 00:17:40 Cumulative 302.5 hours Start 2026.03.14 @ 20:57:48 End 2026.03.14 @ 21:09:30 Sessions 1 Manual Loads 0 Difficulty Rogue Special Mode None Game No. 232 Rogue 232 Adventurer 0 Explorer 0 Win Type - Total 12 Types 8/0/3/1/0/0/0/0/0/0 Lore% 86 Gallery% 72 Achievement% 61 Wizard Run 0 Options --------- Layout 1 ASCII 0 Keyboard 0 Movement Numpad Keybinds 0 Fullscreen 1 Font 24/Smallcaps Map View 50x35 Zoom Use 0% Tactical HUD 1 Map Filters NONE Filters NONE Steam 1 RUN: f0503861-6ea2-4b1e-b13e-c64c07e46232